bitfinex/quotes_ETHUSD_20250730
["timestamp","ask_amount","ask_price","bid_price","bid_amount"]
[1753843760543,0.002,3825.5,3825.2,0.1304]
[1753843760743,0.9154,3825.3,3825.2,0.1304]
[1753843761441,0.9154,3825.3,3824.8,0.001]
[1753843761442,1.09016,3825.3,3824.8,0.001]
[1753843761649,0.9154,3825.2,3825.0,0.1304]
[1753843762049,0.9154,3825.1,3825.0,0.1304]
[1753843764141,0.9154,3825.1,3824.8,0.001]
[1753843764142,1.7259,3825.1,3824.8,0.001]
[1753843764345,0.8105,3824.9,3824.8,0.001]
[1753843764545,1.4909,3824.9,3824.8,0.001]
[1753843764769,5.4063,3824.9,3824.8,0.001]
[1753843768646,5.60736295,3824.9,3824.8,0.001]
[1753843769504,38.22181038,3824.9,3824.8,0.001]
[1753843769802,40.79207499,3824.9,3824.8,0.001]
[1753843770564,38.17762756,3824.9,3824.8,0.001]
[1753843771587,42.24862756,3824.9,3824.8,0.001]
[1753843772091,12.24862756,3824.9,3824.8,0.001]
[1753843772410,5.78614589,3824.9,3824.8,0.001]
[1753843772698,8.21296295,3824.9,3824.8,0.001]
[1753843773890,9.17386295,3824.9,3824.8,0.001]
[1753843774702,8.21296295,3824.9,3824.8,0.001]
[1753843775055,4.14196295,3824.9,3824.8,0.001]
[1753843775290,8.21296295,3824.9,3824.8,0.001]
[1753843775590,9.17386295,3824.9,3824.8,0.001]
[1753843775763,10.64124925,3824.9,3824.8,0.001]
[1753843778888,6.57024925,3824.9,3824.8,0.001]
[1753843779192,10.64124925,3824.9,3824.8,0.001]
[1753843779656,8.76296295,3824.9,3824.8,0.001]
[1753843779862,5.76196295,3824.9,3824.8,0.001]
[1753843780165,4.69196295,3824.9,3824.8,0.001]
[1753843780380,8.76196295,3824.9,3824.8,0.001]
[1753843781407,9.25206295,3824.9,3824.8,0.001]
[1753843781695,10.66139622,3824.9,3824.8,0.001]
[1753843786415,13.27584365,3824.9,3824.8,0.001]
[1753843786731,43.27584365,3824.9,3824.8,0.001]
[1753843787315,40.66139622,3824.9,3824.8,0.001]
[1753843788240,43.27584365,3824.9,3824.8,0.001]
[1753843789341,46.03584365,3824.9,3824.8,0.001]
[1753843790386,43.42139622,3824.9,3824.8,0.001]
[1753843790738,6.59139622,3824.9,3824.8,0.001]
[1753843791039,5.21096295,3824.9,3824.8,0.001]
[1753843791192,4.40046295,3824.9,3824.8,0.001]
[1753843791391,14.95046295,3824.9,3824.8,0.001]
[1753843791605,10.88146295,3824.9,3824.8,0.001]
[1753843791824,14.95046295,3824.9,3824.8,0.001]
[1753843792952,10.88146295,3824.9,3824.8,0.001]
[1753843793082,7.95046295,3824.9,3824.8,0.001]
[1753843793287,4.27006295,3824.9,3824.8,1.6894]
[1753843793529,4.27006295,3824.9,3824.8,0.4529]
[1753843793698,4.27006295,3824.9,3824.8,0.001]
[1753843794275,4.27006295,3824.9,3824.8,0.4529]
[1753843794841,4.27006295,3824.9,3824.8,0.8769]
[1753843796423,4.27006295,3824.9,3824.8,0.001]
[1753843797190,0.20106295,3824.9,3824.8,0.4529]
[1753843797428,4.068,3824.9,3824.8,0.4529]
[1753843797628,4.068,3824.9,3824.8,0.8769]
[1753843797990,4.068,3824.9,3824.8,0.4529]
[1753843798594,7.068,3824.9,3824.8,0.001]
[1753843799896,7.068,3824.9,3824.8,0.4529]
[1753843800570,7.067,3824.9,3824.8,0.4529]
[1753843800845,7.067,3824.9,3824.8,1.2229]
[1753843801517,3.0,3824.9,3824.8,1.2229]
[1753843801844,7.067,3824.9,3824.8,1.2229]
[1753843803946,7.067,3824.9,3824.8,0.771]
[1753843804268,7.067,3824.9,3824.8,0.001]
[1753843806334,8.8074,3824.9,3824.8,0.001]
[1753843806521,10.08396866,3824.9,3824.8,0.001]
[1753843807311,7.066,3824.9,3824.8,0.001]
[1753843808613,7.066,3824.9,3824.8,0.9056]
[1753843809042,7.066,3824.9,3824.8,0.4816]
[1753843809430,7.066,3824.9,3824.8,0.9056]
[1753843809830,4.066,3824.9,3824.8,0.9056]
[1753843810053,4.066,3824.9,3824.8,0.4816]
[1753843810261,4.066,3824.9,3824.8,0.001]
[1753843810562,4.066,3824.9,3824.8,0.4816]
[1753843811345,4.066,3824.9,3824.8,0.001]
[1753843813972,7.9835,3824.9,3824.8,0.001]
[1753843814155,8.1139,3824.9,3824.8,0.001]
[1753843815764,9.57538866,3824.9,3824.8,0.001]
[1753843815970,10.36748866,3824.9,3824.8,0.001]
[1753843816136,40.36748866,3824.9,3824.8,0.001]
[1753843816871,6.30148866,3824.9,3824.8,0.001]
[1753843817171,9.455,3824.9,3824.8,0.001]
[1753843817679,3.6804,3824.9,3824.8,0.001]
[1753843817844,7.1944,3824.9,3824.8,0.001]
[1753843818044,0.19868659,3825.2,3824.8,0.001]
[1753843818277,0.1304,3825.0,3824.8,0.001]
[1753843818575,4.064,3824.9,3824.8,0.001]
[1753843819534,0.1304,3825.0,3824.8,0.001]
[1753843819734,4.064,3824.9,3824.8,0.9056]
[1753843819935,4.064,3824.9,3824.8,0.4816]
[1753843820267,0.19868659,3825.2,3824.8,0.4816]
[1753843820446,4.064,3825.1,3824.9,0.4806]
[1753843820630,7.064,3825.1,3825.0,0.4806]
[1753843821062,3.0,3825.1,3825.0,0.4806]
[1753843821243,3.0,3825.1,3825.0,0.9046]
[1753843821583,3.0,3825.1,3825.0,1.035]
[1753843821752,3.0,3825.1,3825.0,0.611]
[1753843822945,3.0,3825.1,3824.8,0.001]
[1753843823155,3.0,3825.1,3824.9,0.611]
[1753843823339,3.0,3825.1,3825.0,0.4806]
[1753843824440,3.0,3825.1,3824.9,0.1304]
[1753843825773,4.065,3825.2,3824.9,0.611]
[1753843826151,4.065,3825.2,3824.9,0.4806]
[1753843826477,4.9825,3825.2,3825.1,0.1304]
[1753843826647,4.9825,3825.2,3824.9,0.1304]
[1753843827134,0.4634,3825.1,3824.9,0.1304]
[1753843827337,7.063,3825.0,3824.8,0.001]
[1753843827537,3.0,3824.9,3824.8,0.001]
[1753843827734,4.1934,3825.0,3824.8,0.001]
[1753843827937,0.9175,3824.9,3824.8,0.001]
[1753843828554,3.9175,3824.9,3824.8,0.001]
[1753843829074,3.0,3824.9,3824.8,0.001]
[1753843829381,0.1304,3825.0,3824.8,0.001]
[1753843829591,0.002,3825.2,3824.8,0.7769]
[1753843829738,3.0,3825.0,3824.9,0.1304]
[1753843829938,4.063,3825.0,3824.9,0.1304]
[1753843830856,4.065,3825.2,3824.9,0.629]
[1753843831185,4.065,3825.2,3825.0,0.4986]
[1753843831368,4.065,3825.2,3825.1,0.1304]
[1753843832807,4.966,3825.2,3825.1,0.1304]
[1753843832971,3.0,3825.1,3824.8,0.001]
[1753843833174,0.1304,3825.0,3824.8,0.001]
[1753843833371,7.062,3824.9,3824.8,0.001]
[1753843833574,7.963,3824.9,3824.8,0.001]
[1753843834073,7.5341,3824.9,3824.8,0.001]
[1753843834280,7.062,3824.9,3824.8,0.001]
[1753843836699,8.72533,3824.9,3824.8,0.001]
[1753843836878,9.64983,3824.9,3824.8,0.001]
[1753843838803,10.19983,3824.9,3824.8,0.001]
[1753843839513,12.81427743,3824.9,3824.8,0.001]
[1753843839824,36.95902087,3824.5,3824.4,0.001]
[1753843840119,41.02102087,3824.5,3824.4,0.001]
[1753843840316,42.05242087,3824.5,3824.4,0.001]
[1753843840673,42.05242087,3824.5,3822.7,0.1304]
[1753843840674,1.3516,3823.6,3822.7,0.1304]
[1753843840879,0.1304,3823.2,3822.5,0.1312]
[1753843841174,7.1914,3823.2,3822.5,0.1312]
[1753843841600,7.1914,3823.2,3822.5,0.6298]
[1753843842290,8.0924,3823.2,3822.5,0.1312]
[1753843842699,8.95664,3823.2,3822.5,0.1312]
[1753843843002,8.95664,3823.2,3822.1,0.04]
[1753843843003,10.33954,3823.2,3822.1,0.04]
[1753843843685,40.33954,3823.2,3822.1,0.04]
[1753843844119,4.69714,3823.2,3822.1,0.06616362]
[1753843844426,7.5341,3823.2,3822.1,0.04]
[1753843844591,7.963,3823.2,3822.3,0.4986]
[1753843845631,7.061,3823.2,3822.5,0.4986]
[1753843845812,3.0,3823.2,3822.5,0.4986]
[1753843846288,4.061,3823.2,3823.0,0.8288]
[1753843846492,4.061,3823.2,3822.7,1.2762]
[1753843847012,4.062,3823.2,3823.1,0.5386]
[1753843847207,7.062,3823.2,3823.1,0.5386]
[1753843847611,7.062,3823.2,3823.1,0.04]
[1753843849929,7.7682,3823.2,3823.1,0.04]
[1753843850134,8.6692,3823.2,3823.1,0.04]
[1753843850431,7.7682,3823.2,3823.1,0.041]
[1753843850606,7.062,3823.2,3823.1,0.041]
[1753843853239,7.963,3823.2,3823.1,0.041]
[1753843853538,8.7266,3823.2,3823.1,0.041]
[1753843854220,8.857,3823.2,3823.1,0.041]
[1753843854690,4.061,3823.2,3823.1,0.041]
[1753843855696,5.83774,3823.2,3823.1,0.041]
[1753843855922,6.86914,3823.2,3823.1,0.041]
[1753843856230,9.86914,3823.2,3823.1,0.041]
[1753843856635,12.48474996,3823.2,3823.1,0.041]
[1753843857233,12.46084996,3823.2,3823.1,0.041]
[1753843858168,42.46084996,3823.2,3823.1,0.041]
[1753843859029,39.84524,3823.2,3823.1,0.041]
[1753843859351,4.33324,3823.2,3823.1,0.041]
[1753843859524,8.8761,3823.2,3823.1,0.041]
[1753843859726,9.4261,3823.2,3823.1,0.041]
[1753843860042,8.8761,3823.2,3823.1,0.041]
[1753843860247,9.4261,3823.2,3823.1,0.041]
[1753843860430,9.5600519,3823.2,3823.1,0.041]
[1753843860630,10.77760153,3823.2,3823.1,0.041]
[1753843861140,40.77760153,3823.2,3823.1,0.041]
[1753843861550,10.77760153,3823.2,3823.1,0.041]
[1753843861698,9.87660153,3823.2,3823.1,0.041]
[1753843861917,9.6058519,3823.2,3823.1,0.041]
[1753843862212,39.6058519,3823.2,3823.1,0.041]
[1753843862599,9.6058519,3823.2,3823.1,0.041]
[1753843863023,3.1304,3823.2,3823.1,0.041]
[1753843863340,7.061,3823.2,3823.1,0.5015]
[1753843863496,7.061,3823.2,3823.1,0.041]
[1753843864098,8.6882,3823.2,3823.1,0.041]
[1753843864301,8.5499765,3823.2,3823.1,0.041]
[1753843864734,7.7414,3823.2,3823.1,0.041]
[1753843866769,7.061,3823.2,3823.1,0.5015]
[1753843867932,7.061,3823.2,3823.1,0.041]
[1753843869390,7.061,3823.2,3823.1,0.5015]
[1753843869871,3.0,3823.2,3823.1,0.9255]
[1753843870188,3.0,3823.2,3823.1,0.6319]
[1753843872044,0.13289604,3823.8,3823.2,0.7765]
[1753843872045,4.06,3823.8,3823.2,0.7765]
[1753843872264,3.0,3823.8,3823.7,0.1304]
[1753843873534,4.0772,3823.8,3823.3,0.1304]
[1753843873772,4.5138,3823.7,3823.3,0.1304]
[1753843873959,3.0,3823.6,3823.1,0.041]
[1753843874276,4.1904,3823.5,3823.1,0.041]
[1753843874451,3.0,3823.4,3823.1,0.041]
[1753843874774,3.0,3823.2,3823.1,0.041]
[1753843875674,3.0,3823.3,3823.1,1.85]
[1753843875906,0.1304,3824.0,3823.2,0.8845]
[1753843876060,0.1304,3824.0,3823.2,0.424]
[1753843876265,4.06,3823.9,3823.7,0.1304]
[1753843876577,3.0,3823.8,3823.7,0.1304]
[1753843878053,4.06,3823.8,3823.7,1.4138]
[1753843878259,3.0,3823.9,3823.7,1.4138]
[1753843879078,3.0,3823.9,3823.7,0.9533]
[1753843879762,3.0,3823.7,3823.1,0.8646]
[1753843880100,4.059,3823.6,3823.3,0.1304]
[1753843880881,3.9468,3823.5,3823.1,0.041]
[1753843881092,3.0,3823.3,3823.1,0.1714]
[1753843881575,3.4538,3823.3,3823.1,0.1714]
[1753843881903,3.9468,3823.3,3823.1,0.041]
[1753843882400,0.9468,3823.2,3823.1,0.041]
[1753843882565,8.480538,3823.2,3823.1,0.041]
[1753843882765,8.610938,3823.2,3823.1,0.041]
[1753843883402,9.160938,3823.2,3823.1,0.041]
[1753843883905,42.53724796,3823.2,3823.1,0.041]
[1753843887207,45.29624796,3823.2,3823.1,0.041]
[1753843887770,15.29624796,3823.2,3823.1,0.041]
[1753843887967,45.29624796,3823.2,3823.1,0.041]
[1753843889221,52.29624796,3823.2,3823.1,0.041]
[1753843891236,52.29624796,3823.2,3822.7,0.001]
[1753843891237,36.99538364,3822.8,3822.7,0.001]
[1753843891434,47.47478364,3822.8,3822.7,0.001]
[1753843891732,48.37948364,3822.8,3822.7,0.001]
[1753843892107,18.37948364,3822.8,3822.7,0.001]
[1753843892522,48.37948364,3822.8,3822.7,0.001]
[1753843892831,50.94974825,3822.8,3822.7,0.001]
[1753843894007,50.94874825,3822.8,3822.7,0.001]
[1753843894823,53.70774825,3822.8,3822.7,0.001]
[1753843895002,33.16629428,3822.2,3822.1,0.04]
[1753843895345,43.71665889,3822.2,3822.1,0.04]
[1753843895833,14.62135889,3822.2,3822.1,0.04]
[1753843896044,44.62135889,3822.2,3822.1,0.04]
[1753843896651,47.38035889,3822.2,3822.1,0.04]
[1753843897121,6.94557895,3821.2,3821.1,0.04]
[1753843897323,18.13577895,3821.2,3821.1,0.04]
[1753843897543,49.04047895,3821.2,3821.1,0.04]
[1753843900955,41.4598,3821.2,3821.1,0.04]
[1753843901246,48.13677895,3821.2,3821.1,0.04]
[1753843901410,50.70704356,3821.2,3821.1,0.04]
[1753843901839,43.70704356,3821.2,3821.1,0.04]
[1753843903047,44.16874356,3821.2,3821.1,0.04]
[1753843903252,44.61174356,3821.2,3821.1,0.04]
[1753843903772,44.74250776,3821.2,3821.1,0.04]
[1753843904276,40.44222881,3821.2,3821.1,0.04]
[1753843904483,38.6316642,3821.2,3821.1,0.04]
[1753843904633,38.6316642,3821.2,3820.3,0.4594]
[1753843904634,6.1672725,3820.8,3820.3,0.4594]
[1753843904962,0.55,3820.4,3820.3,0.4594]
[1753843905163,4.61,3820.4,3820.3,0.425]
[1753843905367,7.61,3820.4,3820.3,0.425]
[1753843905853,7.61,3820.4,3820.3,0.8834]
[1753843907047,7.61,3820.4,3820.3,0.4594]
[1753843908179,7.06,3820.4,3820.3,0.8834]
[1753843909165,8.316,3820.4,3820.3,0.001]
[1753843909678,40.93352696,3820.4,3820.3,0.001]
[1753843909834,7.61,3820.4,3820.3,0.425]
[1753843910031,7.61,3820.4,3820.3,0.8834]
[1753843910256,3.55,3820.4,3820.3,1.6861]
[1753843910458,7.06,3820.4,3820.3,1.6861]
[1753843910669,3.0,3820.4,3820.3,1.6861]
[1753843910905,4.06,3820.5,3820.4,0.7883]
[1753843911060,3.0,3820.5,3820.4,0.7883]
[1753843911261,4.06,3820.6,3820.4,1.6707]
[1753843911468,4.06,3820.6,3820.5,0.7883]
[1753843911652,7.06,3820.6,3820.5,0.7883]
[1753843911852,7.06,3820.6,3820.5,1.6707]
[1753843912048,3.0,3820.6,3820.5,1.6707]
[1753843913249,3.0,3820.6,3820.5,1.2467]
[1753843913482,7.059,3820.6,3820.5,1.2467]
[1753843913884,3.55,3820.5,3820.3,0.001]
[1753843914186,7.609,3820.4,3820.3,0.001]
[1753843914568,7.7402,3820.4,3820.3,0.001]
[1753843914888,7.7402,3820.4,3820.3,0.4594]
[1753843915786,7.7402,3820.4,3820.3,0.001]
[1753843915961,9.04651,3820.4,3820.3,0.001]
[1753843916165,9.48951,3820.4,3820.3,0.001]
[1753843917362,3.6812,3820.4,3820.3,0.001]
[1753843917564,7.7402,3820.4,3820.3,0.001]
[1753843917765,3.1312,3820.4,3820.3,1.2427]
[1753843917971,7.059,3820.4,3820.3,1.6667]
[1753843919680,0.002,3820.6,3820.4,0.8278]
[1753843919987,0.002,3820.6,3820.4,1.7102]
[1753843920151,0.002,3820.6,3820.5,1.0136]
[1753843920974,0.002,3820.6,3820.5,0.5896]
[1753843921192,0.002,3820.6,3820.5,0.1312]
[1753843921764,7.061,3820.6,3820.5,0.1312]
[1753843921983,3.0,3820.5,3820.4,0.8278]
[1753843922184,4.059,3820.5,3820.4,0.8278]
[1753843922498,4.059,3820.5,3820.3,0.001]
[1753843922704,4.1902,3820.5,3820.3,0.001]
[1753843927184,4.059,3820.5,3820.3,0.001]
[1753843927399,7.059,3820.5,3820.4,1.038]
[1753843927702,7.059,3820.5,3820.4,1.8614]
[1753843928296,3.0,3820.5,3820.4,1.8614]
[1753843932214,0.002,3820.6,3820.4,1.8614]
[1753843932508,0.002,3820.6,3820.5,1.6927]
[1753843934881,0.002,3820.6,3820.5,1.71887458]
[1753843936106,0.002,3820.6,3820.5,5.9327]
[1753843937590,0.002,3820.6,3820.5,8.55015844]
[1753843938725,0.002,3820.6,3820.5,5.9327]
[1753843940817,0.002,3820.6,3820.5,8.55015844]
[1753843941584,0.002,3821.0,3820.9,2.61718443]
[1753843941911,0.002,3821.0,3820.9,10.49968443]
[1753843942091,0.002,3821.0,3820.9,10.63088443]
[1753843942298,0.002,3821.0,3820.9,11.53768443]
[1753843942528,0.002,3821.0,3820.9,4.4405]
[1753843942697,0.002,3821.0,3820.9,8.4965]
[1753843942896,0.002,3821.0,3820.9,11.53768443]
[1753843943988,0.19646011,3822.4,3821.0,0.8315]
[1753843944189,0.9244,3822.3,3822.1,0.1312]
[1753843944387,0.9244,3822.2,3821.5,4.055]
[1753843944621,0.7663,3822.3,3822.0,0.1312]
[1753843944846,0.9244,3822.1,3821.3,4.055]
[1753843945159,0.19646011,3822.4,3821.7,0.8239]
[1753843945459,1.12086011,3822.4,3822.3,0.1312]
[1753843945651,0.9244,3822.4,3822.3,0.1312]
[1753843947168,0.9244,3822.4,3821.7,0.8239]
[1753843947320,0.4579,3822.3,3822.2,0.1312]
[1753843947524,0.9244,3822.3,3822.2,0.1312]
[1753843954276,0.1304,3822.7,3822.2,0.1312]
[1753843954277,0.66800526,3822.8,3822.2,0.1312]
[1753843954476,0.66800526,3822.8,3822.6,0.1312]
[1753843954975,0.913,3822.7,3822.6,0.1312]
[1753843959272,0.23943212,3822.9,3822.6,0.1312]
[1753843959473,0.04,3822.9,3822.6,0.9149]
[1753843959806,0.5092,3822.9,3822.8,0.1304]
[1753843960505,0.953,3822.9,3822.8,0.1304]
[1753843962105,1.7298,3822.9,3822.7,0.1304]
[1753843962404,0.913,3822.8,3822.7,0.1304]
[1753843963083,1.10541173,3822.8,3821.8,0.8118]
[1753843963292,0.4692,3822.8,3822.4,0.1312]
[1753843963610,0.913,3822.7,3822.4,0.1312]
[1753843964070,0.04,3822.9,3822.4,0.8234]
[1753843964269,0.04,3822.9,3822.6,0.1312]
[1753843964485,0.04,3822.9,3822.8,0.1304]
[1753843965197,0.04,3822.9,3822.8,1.4045]
[1753843965515,0.04,3822.9,3822.8,1.8285]
[1753843966068,0.04,3822.9,3822.8,4.44438364]
[1753843966271,0.04,3822.9,3822.8,1.8285]
[1753843969026,0.04,3822.9,3822.8,0.9443]
[1753843969232,0.953,3822.9,3822.8,0.1304]
[1753843969405,1.7122,3822.9,3822.8,0.1304]
[1753843969589,1.88362,3822.9,3822.6,0.1312]
[1753843969783,0.913,3822.8,3821.5,0.792]
[1753843970096,1.0434,3822.7,3822.2,0.1312]
[1753843970302,1.93276,3822.7,3822.2,0.1312]
[1753843970498,1.01976,3822.7,3822.2,0.1312]
[1753843970717,0.913,3822.6,3822.2,0.1312]
[1753843971088,1.01976,3822.7,3822.2,0.1312]
[1753843971291,0.913,3822.5,3822.2,0.1312]
[1753843971810,0.4438,3822.4,3822.2,0.1312]
[1753843972131,0.913,3822.4,3822.2,0.1312]
[1753843972502,1.743,3822.3,3821.2,0.7847]
[1753843972703,1.0442,3822.2,3821.7,0.1312]
[1753843972904,0.913,3822.2,3821.0,0.48637115]
[1753843973132,0.913,3822.2,3821.1,0.8842]
[1753843973432,0.913,3822.2,3822.0,0.1312]
[1753843973615,0.83,3822.3,3822.0,0.1312]
[1753843973811,0.913,3822.1,3822.0,0.1312]
[1753843980303,0.9336,3822.3,3822.0,0.1312]
[1753843980655,0.483,3822.1,3822.0,0.1312]
[1753843981356,0.9336,3822.1,3822.0,0.1312]
[1753843981509,0.9336,3822.4,3822.0,0.1312]
[1753843982055,0.9336,3822.4,3821.7,0.49476636]
[1753843982258,0.88869993,3822.8,3822.2,0.1312]
[1753843982259,1.6924,3822.8,3822.2,0.1312]
[1753843982465,1.2094,3822.8,3822.2,0.1312]
[1753843982617,1.2094,3822.8,3821.5,0.7591]
[1753843982618,0.9336,3822.7,3821.5,0.7591]
[1753843982820,0.4506,3822.6,3822.2,0.1312]
[1753843983026,0.9336,3822.6,3822.2,0.1312]
[1753843983234,0.1304,3822.7,3822.2,0.1312]
[1753843983440,0.9336,3822.5,3822.2,0.1312]
[1753843983638,0.1304,3822.7,3822.2,0.1312]
[1753843983836,0.8016,3822.5,3821.2,4.8129]
[1753843984038,0.8016,3822.5,3821.8,0.1312]
[1753843984039,0.1312,3822.3,3821.8,0.1312]
[1753843984237,0.8016,3822.1,3821.2,0.7619]
[1753843984523,0.9336,3822.0,3821.6,0.1312]
[1753843984949,0.9336,3821.9,3821.6,0.1312]
[1753843985472,0.9328,3822.1,3821.6,0.1312]
[1753843985638,0.9336,3821.8,3821.6,0.1312]
[1753843986103,0.9336,3821.7,3821.6,0.1312]
[1753843987351,0.483,3821.7,3821.6,0.1312]
[1753843987531,0.9336,3822.0,3821.6,0.1312]
[1753843987724,0.9336,3821.9,3821.6,0.1312]
[1753843988798,0.483,3822.3,3821.7,0.8278]
[1753843989090,0.483,3822.3,3822.0,0.1312]
[1753843989453,0.9336,3822.2,3822.0,0.1312]
[1753843989992,0.9336,3822.1,3822.0,0.1312]
[1753843990448,0.9141,3822.5,3822.0,0.1312]
[1753843990649,0.9336,3822.4,3822.0,0.1312]
[1753843991180,0.9336,3822.3,3822.0,0.1312]
[1753843991694,0.9336,3822.2,3822.0,0.1312]
[1753843992074,0.4506,3822.1,3822.0,0.1312]
[1753843992387,0.9336,3822.1,3822.0,0.1312]
[1753843993093,0.9141,3822.5,3822.0,0.1312]
[1753843993295,0.8621,3822.9,3822.4,0.1312]
[1753843993449,0.042,3822.9,3822.5,0.4686]
[1753843993674,0.042,3822.9,3822.8,0.1304]
[1753843994716,0.9756,3822.9,3822.8,0.1304]
[1753843995517,0.042,3822.9,3822.8,0.1304]
[1753843998629,0.8582,3822.9,3822.8,0.1304]
[1753843998792,1.92612,3822.9,3822.8,0.1304]
[1753843998978,1.7918,3822.9,3822.8,0.1304]
[1753843999178,0.9756,3822.9,3822.8,0.1304]
[1753843999389,0.042,3822.9,3822.8,0.1304]
[1753844000470,0.525,3822.9,3822.8,0.1304]
[1753844000801,0.9756,3822.9,3822.8,0.1304]
[1753844001575,0.042,3822.9,3822.8,0.9272]
[1753844003224,0.042,3822.9,3822.8,1.8198]
[1753844004173,0.042,3822.9,3822.8,1.84595883]
[1753844004925,0.042,3822.9,3822.8,1.3958]
[1753844005157,0.042,3822.9,3822.8,0.9272]
[1753844005464,0.042,3822.9,3822.8,0.1304]
[1753844008832,0.042,3822.9,3822.8,0.599]
[1753844009014,0.042,3822.9,3822.8,1.023]
[1753844010340,0.042,3822.9,3822.8,0.599]
[1753844011639,0.042,3822.9,3822.8,1.7792]
[1753844011836,0.042,3822.9,3822.8,1.80535883]
[1753844012133,0.042,3822.9,3822.8,1.7792]
[1753844012342,0.042,3822.9,3822.8,6.0192]
[1753844013647,0.042,3822.9,3822.8,10.0662]
[1753844013866,0.042,3822.9,3822.8,8.4174]
[1753844014021,0.042,3822.9,3822.8,9.2445]
[1753844014220,0.042,3822.9,3822.8,9.7027]
[1753844014724,0.042,3822.9,3822.8,9.2435]
[1753844014933,0.042,3822.9,3822.8,5.1975]
[1753844015097,0.042,3822.9,3822.8,8.4164]
[1753844015429,0.042,3822.9,3822.8,8.8746]
[1753844016198,0.042,3822.9,3822.8,9.2986]
[1753844016396,0.042,3822.9,3822.8,10.1002]
[1753844016842,0.042,3822.9,3822.8,5.8602]
[1753844017139,0.042,3822.9,3822.8,8.05208364]
[1753844017344,0.042,3822.9,3822.8,8.47608364]
[1753844021550,0.042,3822.9,3822.8,5.4362]
[1753844021755,0.042,3822.9,3822.8,4.978]
[1753844021954,0.042,3822.9,3822.8,0.932]
[1753844022116,0.042,3822.9,3822.8,4.977]
[1753844022321,0.042,3822.9,3822.8,0.932]
[1753844022561,0.042,3822.9,3822.8,4.977]
[1753844022718,0.042,3822.9,3822.8,9.217]
[1753844027181,0.042,3822.9,3822.8,5.172]
[1753844027355,0.9881,3822.9,3822.8,9.217]
[1753844028556,0.9881,3822.9,3822.8,4.977]
[1753844029587,0.042,3822.9,3822.8,4.977]
[1753844030146,0.042,3822.9,3822.8,0.932]
[1753844030369,0.042,3822.9,3822.8,4.976]
[1753844030571,0.042,3822.9,3822.8,0.932]
[1753844030773,0.042,3822.9,3822.8,4.976]
[1753844030968,0.042,3822.9,3822.8,4.1744]
[1753844031889,0.9881,3822.9,3822.8,4.1744]
[1753844032714,0.042,3822.9,3822.8,4.1744]
[1753844032859,0.042,3822.9,3822.8,0.1304]
[1753844032860,0.9881,3822.9,3822.8,0.1304]
[1753844033250,1.7632,3822.9,3822.7,4.044]
[1753844033591,1.12262,3822.8,3822.6,0.1312]
[1753844033753,0.8248,3822.7,3822.6,0.1312]
[1753844033962,1.7709,3822.7,3822.6,4.1752]
[1753844034799,1.7709,3822.7,3822.6,0.1312]
[1753844036066,1.7709,3822.7,3821.6,4.24]
[1753844036261,0.8248,3822.7,3822.5,0.1312]
[1753844036467,0.9461,3822.6,3822.5,0.1312]
[1753844040220,1.12739,3822.6,3822.3,4.043]
[1753844040419,0.9118,3822.5,3822.2,0.1312]
[1753844040933,0.8248,3822.7,3822.2,0.1312]
[1753844041091,0.9118,3822.4,3822.2,0.1312]
[1753844041288,0.8248,3822.7,3822.2,0.1312]
[1753844041556,0.9118,3822.3,3822.2,0.1312]
[1753844041858,0.4626,3822.6,3822.5,0.1312]
[1753844042156,0.4626,3822.6,3822.2,0.1312]
[1753844042311,0.9118,3822.6,3821.8,4.043]
[1753844042512,0.4492,3822.6,3822.5,0.1312]
[1753844042710,0.9118,3822.6,3822.5,0.1312]
[1753844044162,0.8248,3822.7,3822.5,0.1312]
[1753844044457,1.7136,3822.9,3822.5,0.1312]
[1753844044756,0.9118,3822.8,3822.5,0.1312]
[1753844045325,0.9118,3822.7,3822.5,0.1312]
[1753844045744,0.9118,3822.6,3822.5,0.1312]
[1753844046638,0.4626,3822.8,3822.5,0.1312]
[1753844046978,1.251,3822.9,3822.5,0.6131]
[1753844046979,0.042,3822.9,3822.5,0.6131]
[1753844047187,0.042,3822.9,3822.6,0.4819]
[1753844047332,0.042,3822.9,3822.7,0.1304]
[1753844048848,0.9538,3822.9,3822.7,0.1304]
[1753844049271,1.6871,3822.8,3822.7,0.1304]
[1753844049587,0.7753,3822.7,3821.3,0.7644]
[1753844049797,0.9118,3822.6,3821.9,0.1312]
[1753844050095,0.7753,3822.3,3821.9,0.1312]
[1753844050643,0.9118,3822.2,3821.9,0.1312]
[1753844051262,0.9118,3822.1,3821.9,0.1312]
[1753844051672,1.6919,3822.0,3821.2,6.288]
[1753844051972,0.9118,3821.9,3821.8,0.1312]
[1753844054574,0.9118,3822.3,3821.8,0.1312]